bitfinex-derivatives/quotes_BTCF0:USTF0_20250121
["timestamp","ask_amount","ask_price","bid_price","bid_amount"]
[1737464162089,1.98225075,104560.0,104550.0,0.017]
[1737464162295,1.98225075,104560.0,104550.0,0.03196339]
[1737464165700,0.48225075,104560.0,104550.0,0.07983739]
[1737464165905,0.48225075,104560.0,104550.0,0.03196339]
[1737464166090,0.54618408,104560.0,104550.0,0.03196339]
[1737464166294,0.047874,104550.0,104540.0,0.22589412]
[1737464166495,0.53654066,104550.0,104540.0,0.22589412]
[1737464166702,2.03654066,104550.0,104540.0,0.22589412]
[1737464166891,0.047878,104540.0,104530.0,0.2260375]
[1737464167202,0.63071133,104540.0,104530.0,0.2260375]
[1737464167803,0.63071133,104540.0,104530.0,0.24998499]
[1737464167995,0.63071133,104540.0,104530.0,0.26195873]
[1737464168199,0.63071133,104540.0,104530.0,0.24998499]
[1737464168391,0.63971133,104540.0,104530.0,0.2270375]
[1737464168602,0.63971133,104540.0,104530.0,0.26295873]
[1737464169102,0.64371133,104540.0,104530.0,0.26295873]
[1737464170901,0.64371133,104540.0,104510.0,0.22589412]
[1737464171106,0.11182033,104520.0,104510.0,0.24984174]
[1737464171296,0.53655366,104520.0,104510.0,0.24984174]
[1737464171605,0.53655366,104520.0,104510.0,0.26481033]
[1737464171898,0.53655366,104520.0,104510.0,0.24086271]
[1737464172601,0.47762033,104520.0,104510.0,0.24086271]
[1737464172800,0.413687,104520.0,104510.0,0.28875471]
[1737464172994,0.052887,104520.0,104510.0,0.28875471]
[1737464173596,0.053887,104520.0,104510.0,0.64955471]
[1737464174004,0.053887,104520.0,104510.0,0.28875471]
[1737464174205,0.053887,104520.0,104510.0,0.06286059]
[1737464174605,0.11782033,104520.0,104510.0,0.06286059]
[1737464175603,0.06328773,104520.0,104510.0,0.06286059]
[1737464176006,0.12722106,104520.0,104510.0,0.06286059]
[1737464176206,0.06328773,104520.0,104510.0,0.06286059]
[1737464178511,0.06328773,104520.0,104510.0,0.07782849]
[1737464180102,0.12722106,104520.0,104510.0,0.07782849]
[1737464181215,0.12722106,104520.0,104510.0,0.43862857]
[1737464181216,0.006,104520.0,104510.0,0.43862857]
[1737464181806,0.006,104520.0,104510.0,0.44760827]
[1737464182516,0.006,104520.0,104510.0,0.45560827]
[1737464182718,0.006,104520.0,104510.0,0.47057619]
[1737464183111,0.006,104520.0,104510.0,0.47057651]
[1737464183311,0.006,104520.0,104510.0,0.45560859]
[1737464183822,0.006,104520.0,104510.0,0.51954192]
[1737464184016,0.00014338,104530.0,104510.0,0.51954192]
[1737464184315,0.00014338,104530.0,104520.0,0.570587]
[1737464184520,0.00014338,104530.0,104520.0,0.60950359]
[1737464184709,0.00014338,104530.0,104520.0,0.62447143]
[1737464185013,0.00014338,104530.0,104520.0,0.60052276]
[1737464185310,0.00014338,104530.0,104520.0,0.58555492]
[1737464185311,0.05002638,104530.0,104520.0,0.58555492]
[1737464185907,0.00114338,104530.0,104520.0,0.58555492]
[1737464186106,0.00214338,104530.0,104520.0,0.59355492]
[1737464186707,0.00214338,104530.0,104520.0,0.61752275]
[1737464186908,0.00214338,104530.0,104520.0,0.60255483]
[1737464187108,0.00214338,104530.0,104520.0,0.60255364]
[1737464188513,0.00214338,104530.0,104520.0,0.66648697]
[1737464191415,0.204475,104550.0,104540.0,0.047878]
[1737464191613,0.204475,104550.0,104540.0,0.42364464]
[1737464191614,0.21422754,104550.0,104540.0,0.42364464]
[1737464193010,0.07045254,104550.0,104540.0,0.42464464]
[1737464193818,0.07345254,104550.0,104540.0,0.42464464]
[1737464194418,0.06762654,104550.0,104540.0,0.42464464]
[1737464195121,0.01975254,104550.0,104540.0,0.42464464]
[1737464196018,0.08368587,104550.0,104540.0,0.42464464]
[1737464196415,0.01975254,104550.0,104540.0,0.42464464]
[1737464197722,0.06762654,104550.0,104540.0,0.42464464]
[1737464198918,0.13155987,104550.0,104540.0,0.42464159]
[1737464199618,0.06762654,104550.0,104540.0,0.42464159]
[1737464199924,0.01975254,104550.0,104540.0,0.42464159]
[1737464200315,0.01,104550.0,104540.0,0.42464159]
[1737464202724,0.12180733,104550.0,104540.0,0.42464159]
[1737464205226,0.12180733,104550.0,104540.0,0.06384159]
[1737464206523,0.48260733,104550.0,104540.0,0.01596359]
[1737464207328,0.12180733,104550.0,104540.0,0.01596359]
[1737464207630,0.047878,104540.0,104530.0,0.2739165]
[1737464207928,0.16651133,104540.0,104530.0,0.2739165]
[1737464208328,0.16651133,104540.0,104530.0,0.2260375]
[1737464208529,0.52731133,104540.0,104530.0,0.2260375]
[1737464209118,2.02731133,104540.0,104530.0,0.2260375]
[1737464209317,0.047883,104530.0,104520.0,0.28236765]
[1737464209526,0.47261633,104530.0,104520.0,0.28236765]
[1737464209927,0.47261633,104530.0,104510.0,0.74946353]
[1737464209928,0.53654966,104530.0,104510.0,0.74946353]
[1737464210130,0.53655366,104520.0,104510.0,0.74946353]
[1737464211122,0.53655366,104520.0,104510.0,0.76443223]
[1737464211324,0.53655366,104520.0,104510.0,0.31626349]
[1737464211325,0.53855366,104520.0,104510.0,0.31626349]
[1737464212527,0.53855366,104520.0,104510.0,0.30129479]
[1737464213130,0.64895366,104520.0,104510.0,0.30129479]
[1737464213335,0.64795366,104520.0,104510.0,0.29229479]
[1737464213534,2.14895366,104520.0,104510.0,0.30029479]
[1737464214341,0.64895366,104520.0,104510.0,0.30029479]
[1737464214534,0.65849136,104520.0,104510.0,0.30029479]
[1737464215435,0.047892,104510.0,104500.0,0.00014338]
[1737464215736,0.52962533,104510.0,104500.0,0.01511538]
[1737464216834,0.53062533,104510.0,104500.0,0.02411538]
[1737464217031,0.53162533,104510.0,104500.0,0.03011538]
[1737464219637,0.53162533,104510.0,104500.0,0.04508738]
[1737464225531,0.53162533,104510.0,104500.0,0.03011538]
[1737464226140,0.047901,104490.0,104480.0,0.05811747]
[1737464226444,0.53656766,104490.0,104480.0,0.07308976]
[1737464227142,0.53656766,104490.0,104480.0,0.07309029]
[1737464227542,0.53756766,104490.0,104480.0,0.08009029]
[1737464228138,0.53756766,104490.0,104480.0,0.10404846]
[1737464228640,0.11283433,104490.0,104480.0,0.08907564]
[1737464229147,0.11383433,104490.0,104480.0,0.10604998]
[1737464229339,0.11383433,104490.0,104480.0,0.09107564]
[1737464229538,0.11383433,104490.0,104480.0,0.10604946]
[1737464229944,0.11383433,104490.0,104480.0,0.08209129]
[1737464231248,0.47463433,104490.0,104480.0,0.08209129]
[1737464231846,0.11383433,104490.0,104480.0,0.08209129]
[1737464232241,0.47463433,104490.0,104480.0,0.10604917]
[1737464232836,0.47463433,104490.0,104480.0,0.1060492]
[1737464235243,0.47463433,104490.0,104480.0,0.09107535]
[1737464235443,0.47463433,104490.0,104480.0,0.10604905]
[1737464236243,0.48410391,104490.0,104480.0,0.10604905]
[1737464237844,0.48410391,104490.0,104480.0,0.08209117]
[1737464238846,0.48410391,104490.0,104480.0,0.09706519]
[1737464239444,0.48410391,104490.0,104480.0,0.09706557]
[1737464243256,0.48410391,104490.0,104480.0,0.03906557]
[1737464243257,0.54803724,104490.0,104480.0,0.03906557]
[1737464243552,0.65633724,104490.0,104480.0,0.03906643]
[1737464244457,2.15633724,104490.0,104480.0,0.03906643]
[1737464244760,2.15633724,104490.0,104450.0,0.33884119]
[1737464244957,0.53658166,104460.0,104450.0,0.33884119]
[1737464245255,0.53658166,104460.0,104450.0,0.32788578]
[1737464245462,0.64278166,104460.0,104450.0,0.12750178]
[1737464245656,0.047919,104450.0,104440.0,0.0544]
[1737464245859,0.52365233,104450.0,104440.0,0.0544]
[1737464246048,0.52365233,104450.0,104440.0,0.05454338]
[1737464246248,0.52365233,104450.0,104440.0,0.00014338]
[1737464246755,0.52465233,104450.0,104440.0,0.00314338]
[1737464246956,0.461719,104450.0,104440.0,0.00314338]
[1737464247150,0.52565233,104450.0,104440.0,0.00314338]
[1737464248951,0.64028223,104450.0,104440.0,0.00314338]
[1737464249350,0.63928223,104450.0,104440.0,0.00014338]
[1737464249551,0.64428223,104450.0,104440.0,0.00014338]
[1737464249752,0.65328223,104450.0,104440.0,0.00014338]
[1737464250552,0.66266779,104450.0,104440.0,0.00014338]
[1737464253164,0.54803789,104450.0,104440.0,0.00014338]
[1737464256862,0.54803789,104450.0,104440.0,0.01512403]
[1737464257264,0.54803789,104450.0,104440.0,0.03010468]
[1737464257863,0.54803789,104450.0,104440.0,0.01512403]
[1737464260462,0.48410456,104450.0,104440.0,0.01512403]
[1737464260657,0.54803789,104450.0,104440.0,0.01512403]
[1737464260853,0.54803789,104450.0,104440.0,0.03010437]
[1737464261761,0.54803789,104450.0,104440.0,0.01512403]
[1737464265166,0.54803789,104450.0,104440.0,0.01512424]
[1737464265758,0.54803789,104450.0,104440.0,0.030105]
[1737464266367,0.07230456,104450.0,104440.0,0.50276233]
[1737464266571,0.015,104450.0,104440.0,0.55636233]
[1737464266967,0.015,104450.0,104440.0,0.492429]
[1737464267361,0.015,104450.0,104440.0,0.47744824]
[1737464268269,0.062919,104450.0,104440.0,0.47744824]
[1737464269367,0.062919,104450.0,104440.0,0.11664824]
[1737464269673,0.12685233,104450.0,104440.0,0.01512424]
[1737464269967,0.54225233,104450.0,104440.0,0.01512424]
[1737464270172,0.18145233,104450.0,104440.0,0.01512424]
[1737464270479,0.18145233,104450.0,104440.0,0.03010341]
[1737464271175,0.18145233,104450.0,104440.0,0.030102]
[1737464273371,0.117519,104450.0,104440.0,0.03010232]
[1737464273572,0.18145233,104450.0,104440.0,0.08210232]
[1737464274072,0.18145233,104450.0,104440.0,0.13002632]
[1737464274567,0.062919,104450.0,104440.0,0.13002632]
[1737464274876,0.062919,104450.0,104440.0,0.11504715]
[1737464277477,0.12685233,104450.0,104440.0,0.11504715]
[1737464277983,0.062919,104450.0,104440.0,0.11504715]
[1737464283781,0.062919,104450.0,104440.0,0.10006738]
[1737464284784,0.062919,104450.0,104440.0,0.11504552]
[1737464285493,0.062919,104450.0,104440.0,0.47584552]
[1737464285691,0.062919,104450.0,104440.0,0.46086738]
[1737464287286,0.015,104450.0,104440.0,0.52480071]
[1737464288184,0.062919,104450.0,104440.0,0.46086738]
[1737464288389,0.12685233,104450.0,104440.0,0.10006738]
[1737464288985,0.12685233,104450.0,104440.0,0.46086738]
[1737464289591,0.062919,104450.0,104440.0,0.46086738]
[1737464291691,0.062919,104450.0,104440.0,0.10006738]
[1737464291890,0.062919,104450.0,104440.0,0.46086738]
[1737464292287,0.12685233,104450.0,104440.0,0.46086738]
[1737464292800,0.18275233,104450.0,104440.0,0.46086738]
[1737464293387,0.062919,104450.0,104440.0,0.46086738]
[1737464293593,0.062919,104450.0,104440.0,0.53977871]
[1737464293993,0.062919,104450.0,104440.0,0.47584538]
[1737464294193,0.056919,104450.0,104440.0,0.47584538]
[1737464294403,0.061919,104450.0,104440.0,0.47584538]
[1737464294705,0.061919,104450.0,104440.0,0.53977871]
[1737464294894,0.061919,104450.0,104440.0,0.47584538]
[1737464296098,0.014,104450.0,104440.0,0.53977871]
[1737464296489,0.014,104450.0,104440.0,0.52480071]
[1737464298105,0.014,104450.0,104440.0,0.54949668]
[1737464298900,0.014,104450.0,104440.0,0.53452073]
[1737464299698,0.014,104450.0,104440.0,0.58345458]
[1737464300403,0.014,104450.0,104440.0,0.88345458]
[1737464300601,0.25791728,104460.0,104450.0,0.047919]
[1737464300801,0.25791728,104460.0,104450.0,0.21985233]
[1737464300998,0.25791728,104460.0,104450.0,0.94145233]
[1737464302606,0.08619297,104470.0,104460.0,0.047915]
[1737464302906,0.08619297,104470.0,104460.0,0.461115]
[1737464303108,0.08619297,104470.0,104460.0,0.52504833]
[1737464303806,0.09119297,104470.0,104460.0,0.52504833]
[1737464304195,0.09319297,104470.0,104460.0,0.52504833]
[1737464304394,0.09319297,104470.0,104460.0,0.58898166]
[1737464304709,0.1146299,104480.0,104470.0,0.04791]
[1737464304907,0.1146299,104480.0,104470.0,0.47264333]
[1737464306000,0.1226299,104480.0,104470.0,0.47264333]
[1737464306206,0.1226299,104480.0,104470.0,0.40871]
[1737464306701,0.1266299,104480.0,104470.0,0.40871]
[1737464307209,0.012,104480.0,104470.0,0.40871]
[1737464309914,0.012,104480.0,104470.0,0.47264333]
[1737464310114,0.012,104480.0,104470.0,0.40871]
[1737464312623,0.001,104480.0,104470.0,0.41571]
[1737464312816,0.002,104480.0,104470.0,0.42271]
[1737464314821,0.002,104480.0,104470.0,0.48664333]
[1737464320530,0.002,104480.0,104470.0,0.42271]
[1737464320823,0.11383933,104480.0,104470.0,0.42271]
[1737464321125,0.002,104480.0,104470.0,0.42271]
[1737464321532,0.002,104480.0,104470.0,0.48664333]
[1737464322030,0.002,104480.0,104470.0,0.42271]
[1737464323631,0.002,104480.0,104470.0,0.48664333]
[1737464329334,0.002,104480.0,104470.0,0.71349937]
[1737464332741,0.002,104480.0,104470.0,1.308648]
[1737464335235,0.00014338,104490.0,104480.0,0.047906]
[1737464335432,0.00014338,104490.0,104480.0,0.52583933]
[1737464335633,0.00014338,104490.0,104480.0,0.63473933]
[1737464336339,0.00014338,104490.0,104480.0,0.68367691]
[1737464336533,0.00414338,104490.0,104480.0,0.68367691]
[1737464336736,0.00714338,104490.0,104480.0,0.68367691]
[1737464338346,0.00714338,104490.0,104480.0,0.514806]
[1737464339037,0.00714338,104490.0,104480.0,0.57873933]
[1737464339342,0.00714338,104490.0,104480.0,0.514806]
[1737464339936,0.00714338,104490.0,104480.0,0.57873933]
[1737464340536,0.00714338,104490.0,104480.0,0.80599537]
[1737464341341,0.00714338,104490.0,104480.0,0.81553988]
[1737464341640,0.00714338,104490.0,104480.0,0.69840655]
[1737464341840,0.00714338,104490.0,104480.0,0.68886204]
[1737464342838,0.06144338,104490.0,104480.0,0.68886204]
[1737464343254,0.06144338,104490.0,104480.0,0.63596204]
[1737464343539,0.15994438,104490.0,104480.0,0.63596204]
[1737464343742,0.11204338,104490.0,104480.0,0.63596204]
[1737464343947,0.11204338,104490.0,104480.0,0.69989537]
[1737464344742,0.06144338,104490.0,104480.0,0.69989537]
[1737464344949,0.06144338,104490.0,104480.0,0.75259537]
[1737464346345,0.00714338,104490.0,104480.0,0.75259537]
[1737464346540,0.00714338,104490.0,104480.0,0.80359537]
[1737464347749,0.1146299,104500.0,104490.0,0.047899]
[1737464347954,0.1146299,104500.0,104490.0,0.47263233]
[1737464348445,0.1146299,104500.0,104490.0,0.53656566]
[1737464348642,0.1146299,104500.0,104490.0,0.61903086]
[1737464349050,0.1186299,104500.0,104490.0,0.61903065]
[1737464349255,0.1256299,104500.0,104490.0,0.58650229]
[1737464349455,0.14343076,104510.0,104490.0,0.71572799]
[1737464349751,0.14343076,104510.0,104500.0,0.58372933]
[1737464349951,0.14343076,104510.0,104500.0,0.63266596]
[1737464351041,0.14343076,104510.0,104500.0,0.58372933]
[1737464351454,0.14443076,104510.0,104500.0,0.59072933]
[1737464352154,0.00114338,104510.0,104500.0,0.68641853]
[1737464352552,0.00214338,104510.0,104500.0,0.69541853]
[1737464354043,3.8e-07,104510.0,104500.0,0.72894165]
[1737464354260,3.8e-07,104510.0,104500.0,0.74425073]
[1737464354556,3.8e-07,104510.0,104500.0,0.72894165]
[1737464354754,3.8e-07,104510.0,104500.0,0.77774536]
[1737464356251,3.8e-07,104510.0,104500.0,0.74422224]
[1737464357156,3.8e-07,104510.0,104500.0,0.75396061]
[1737464357359,3.8e-07,104510.0,104500.0,0.78748373]
[1737464358460,3.8e-07,104510.0,104500.0,1.71824031]
[1737464361964,0.00014338,104520.0,104510.0,0.047892]
[1737464362257,0.00014338,104520.0,104510.0,0.47262533]
[1737464362644,0.00014338,104520.0,104510.0,0.56831453]
[1737464363162,0.00314338,104520.0,104510.0,0.56831453]
[1737464363744,0.00114338,104520.0,104510.0,0.57731453]
[1737464364265,0.00314338,104520.0,104510.0,0.57731453]
[1737464364757,0.00114338,104520.0,104510.0,0.57731453]
[1737464364953,0.00114338,104520.0,104510.0,0.58631453]
[1737464365552,0.00114338,104520.0,104510.0,0.49062533]
[1737464367052,0.00114338,104520.0,104510.0,0.426692]
[1737464367256,0.00114338,104520.0,104510.0,0.82248624]
[1737464368361,0.26840233,104530.0,104520.0,0.047887]
[1737464368551,0.22051633,104530.0,104520.0,0.047887]
[1737464369755,0.22051633,104530.0,104520.0,0.056887]
[1737464369962,0.58131633,104530.0,104520.0,0.009]
[1737464370656,0.58131633,104530.0,104520.0,0.016]
[1737464371259,0.58131633,104530.0,104520.0,0.063887]
[1737464372663,0.58131633,104530.0,104520.0,0.016]
[1737464373163,0.22051633,104530.0,104520.0,0.016]
[1737464373558,0.047887,104520.0,104510.0,0.047889]
[1737464373764,0.47262033,104520.0,104510.0,0.047889]
[1737464374366,0.11182033,104520.0,104510.0,0.047889]
[1737464374866,0.047887,104520.0,104510.0,0.056889]
[1737464375163,0.11182033,104520.0,104510.0,0.056889]
[1737464375556,0.047887,104520.0,104510.0,0.056889]
[1737464375762,0.048887,104520.0,104510.0,0.065889]
[1737464377970,0.0586182,104520.0,104510.0,0.065889]
[1737464378170,0.1108182,104520.0,104510.0,0.065889]
[1737464380065,0.4716182,104520.0,104510.0,0.065889]
[1737464380467,0.53555153,104520.0,104510.0,0.018]
[1737464380865,0.59948486,104520.0,104510.0,0.018]
[1737464381569,2.09948486,104520.0,104510.0,0.018]
[1737464382572,2.03555153,104520.0,104510.0,0.018]
[1737464382773,2.09948486,104520.0,104510.0,0.018]
[1737464383271,0.59948486,104520.0,104510.0,0.018]
[1737464383971,0.53555153,104520.0,104510.0,0.018]
[1737464384174,0.59948486,104520.0,104510.0,0.018]
[1737464384867,0.4716182,104520.0,104510.0,0.018]
[1737464385068,0.59948486,104520.0,104510.0,0.018]
[1737464388172,0.74277224,104520.0,104510.0,0.018]
[1737464390170,1.10357224,104520.0,104510.0,0.018]
[1737464390376,0.047892,104510.0,104500.0,0.04803938]
[1737464390567,0.52672533,104510.0,104500.0,0.04803938]
[1737464391175,0.52672533,104510.0,104500.0,0.00014338]
[1737464391784,0.52672533,104510.0,104500.0,0.00914338]
[1737464391975,0.52772533,104510.0,104500.0,0.00914338]
[1737464393271,0.52872533,104510.0,104500.0,0.01814338]
[1737464395478,0.52872533,104510.0,104500.0,0.07014338]
[1737464396482,0.47462533,104510.0,104500.0,0.07014338]
[1737464397472,0.410692,104510.0,104500.0,0.07014338]
[1737464397677,0.410692,104510.0,104500.0,0.12504338]
[1737464398382,0.049892,104510.0,104500.0,0.53373938]
[1737464398581,0.15311414,104520.0,104500.0,0.65097271]
[1737464398777,0.1985398,104540.0,104530.0,0.047883]
[1737464398971,0.1985398,104540.0,104530.0,0.83341633]
[1737464399380,0.1985398,104540.0,104530.0,0.88671633]
[1737464399575,0.23650406,104550.0,104530.0,0.88671633]
[1737464399877,0.23650406,104550.0,104540.0,0.47261133]
[1737464400282,0.28437706,104550.0,104540.0,0.47261133]
[1737464400481,0.28437706,104550.0,104540.0,0.408678]
[1737464401180,0.29837706,104550.0,104540.0,0.409678]
[1737464401382,0.36231039,104550.0,104540.0,0.3618]
[1737464401582,0.29837706,104550.0,104540.0,0.409678]
[1737464402582,0.12412089,104550.0,104540.0,0.3618]
[1737464402788,0.12412089,104550.0,104540.0,0.3628]
[1737464403285,0.12412089,104550.0,104540.0,0.410678]
[1737464404389,0.18042089,104550.0,104540.0,0.410678]
[1737464404779,0.12412089,104550.0,104540.0,0.410678]
[1737464404979,0.02374789,104550.0,104540.0,0.47461133]
[1737464405380,0.07162089,104550.0,104540.0,0.410678]
[1737464405886,0.07162089,104550.0,104540.0,0.049878]
[1737464406188,0.07162089,104550.0,104540.0,0.410678]
[1737464406588,0.07162089,104550.0,104540.0,0.3628]
[1737464406790,0.13555422,104550.0,104540.0,0.002]
[1737464406989,0.56028755,104550.0,104540.0,0.002]
[1737464407187,0.43242089,104550.0,104540.0,0.002]
[1737464407381,0.13555422,104550.0,104540.0,0.002]
[1737464407585,0.56028755,104550.0,104540.0,0.002]
[1737464407885,0.55225422,104550.0,104540.0,0.002]
[1737464409591,0.61618755,104550.0,104540.0,0.002]
[1737464409793,0.047887,104520.0,104510.0,0.6824171]
[1737464410688,0.047887,104520.0,104510.0,0.74635043]
[1737464410890,0.047887,104520.0,104510.0,0.6824171]
[1737464411084,0.047887,104520.0,104510.0,0.6914171]
[1737464411280,0.048887,104520.0,104510.0,0.6914171]
[1737464411686,0.048887,104520.0,104510.0,0.75535043]
[1737464411885,0.048887,104520.0,104510.0,0.6914171]
[1737464412288,0.049887,104520.0,104510.0,0.7004171]
[1737464413593,0.049887,104520.0,104510.0,0.530791]
[1737464413892,0.53855366,104520.0,104510.0,0.018]
[1737464414090,0.59425366,104520.0,104510.0,0.00703746]
[1737464414294,0.047892,104510.0,104500.0,0.16976948]
[1737464414588,1.97262533,104510.0,104500.0,0.16976948]
[1737464414888,0.047896,104500.0,104490.0,0.10585612]
[1737464415188,0.53656266,104500.0,104490.0,0.10585612]
[1737464415389,0.47262933,104500.0,104490.0,0.12082971]
[1737464415687,0.047915,104460.0,104450.0,0.8386945]
[1737464415998,0.53658166,104460.0,104450.0,0.8386945]
[1737464416195,0.53658166,104460.0,104450.0,0.4098955]
[1737464416196,1.05134166,104460.0,104450.0,0.4098955]
[1737464416489,0.047924,104440.0,104430.0,0.95471702]
[1737464416695,0.11185733,104440.0,104430.0,0.95471702]
[1737464416889,2.03659066,104440.0,104430.0,0.96969876]
[1737464417101,1.97265733,104440.0,104430.0,0.96969876]
[1737464417389,1.97265733,104440.0,104430.0,0.01498174]
[1737464417592,0.047928,104430.0,104420.0,2.14751916]
[1737464417800,0.06393333,104430.0,104420.0,2.55639554]
[1737464418095,0.11785833,104440.0,104430.0,0.047927]
[1737464418598,0.11785833,104440.0,104430.0,0.06290896]
[1737464419592,0.11185833,104440.0,104430.0,0.06290896]
[1737464419891,0.47965833,104440.0,104430.0,0.06290896]
[1737464420296,0.12824093,104440.0,104430.0,0.06290896]
[1737464420593,0.0213826,104440.0,104430.0,0.42370896]
[1737464420791,0.012,104440.0,104430.0,0.42370896]
[1737464420999,0.00014338,104450.0,104430.0,0.42370896]
[1737464421296,0.00014338,104450.0,104440.0,0.460224]
[1737464421492,0.00014338,104450.0,104440.0,0.516324]
[1737464421889,0.11406507,104450.0,104440.0,0.516324]
[1737464422894,0.1779984,104450.0,104440.0,0.516324]
[1737464423199,0.1779984,104450.0,104440.0,0.155524]
[1737464423403,0.5867174,104450.0,104440.0,0.0515]
[1737464423601,0.5867174,104450.0,104430.0,0.047928]
[1737464423602,0.047924,104440.0,104430.0,0.047928]
[1737464423796,0.11185733,104440.0,104430.0,0.047928]
[1737464423996,0.11185733,104440.0,104420.0,0.47034338]
[1737464423997,0.42473333,104440.0,104420.0,0.47034338]
[1737464424197,0.047924,104440.0,104430.0,0.01497994]
[1737464424401,0.408724,104440.0,104430.0,0.01497994]
[1737464425302,0.417724,104440.0,104430.0,0.01497994]
[1737464425504,0.047928,104430.0,104420.0,0.00014338]
[1737464425804,0.47266133,104430.0,104420.0,0.01512604]
[1737464426003,0.009,104440.0,104420.0,0.37592604]
[1737464426203,0.07293333,104440.0,104430.0,0.408728]
[1737464426508,0.07893333,104440.0,104430.0,0.42371066]
[1737464426895,0.06993333,104440.0,104430.0,0.42371066]
[1737464427102,0.06993333,104440.0,104430.0,0.47811066]
[1737464427508,0.07893333,104440.0,104430.0,0.54938994]
[1737464428706,0.12685733,104440.0,104430.0,0.54938994]
[1737464429606,0.00014338,104450.0,104430.0,0.61332327]
[1737464429812,0.08516688,104460.0,104450.0,0.047919]
[1737464430007,0.17088254,104480.0,104470.0,0.04791]
[1737464430311,0.17088254,104480.0,104470.0,0.84842261]
[1737464430612,0.17088254,104480.0,104470.0,0.76951]
[1737464430815,0.27464417,104520.0,104510.0,0.047892]
[1737464431110,0.31175414,104550.0,104530.0,0.04788]
[1737464431312,0.24782081,104550.0,104540.0,0.408678]
[1737464431520,0.20008919,104550.0,104540.0,0.408678]
[1737464433217,0.14576446,104550.0,104540.0,0.408678]
[1737464433519,0.15176446,104550.0,104540.0,0.52860878]
[1737464434020,0.15176446,104550.0,104540.0,0.35892655]
[1737464434216,0.15176446,104550.0,104540.0,0.40680455]
[1737464435613,0.19994581,104570.0,104540.0,0.47885733]
[1737464435920,0.047862,104580.0,104570.0,0.047864]
[1737464436215,0.24156854,104600.0,104590.0,0.047855]
[1737464436420,0.24156854,104600.0,104590.0,0.408655]
[1737464437022,0.24156854,104600.0,104590.0,0.88938578]
[1737464437223,0.24156854,104600.0,104590.0,0.769455]
[1737464437414,0.24156854,104600.0,104590.0,0.408655]
[1737464437615,0.36149932,104600.0,104580.0,0.41384338]
[1737464437922,0.29842054,104600.0,104590.0,0.001]
[1737464438826,0.77915132,104600.0,104590.0,0.001]
[1737464439014,0.41835132,104600.0,104590.0,0.001]
[1737464439216,0.30442054,104600.0,104590.0,0.001]
[1737464440022,0.162852,104600.0,104590.0,0.001]
[1737464440326,1.5,104590.0,104580.0,0.40980238]
[1737464440713,1.5,104590.0,104580.0,0.40880238]
[1737464441620,1.547855,104590.0,104580.0,0.40880238]
[1737464442133,1.5,104590.0,104580.0,0.84167416]
[1737464442312,0.108,104600.0,104590.0,0.047855]
[1737464442514,0.108,104600.0,104590.0,0.408655]
[1737464443117,0.1,104600.0,104590.0,0.408655]
[1737464443418,0.106,104600.0,104590.0,0.409655]
[1737464443623,0.106,104600.0,104590.0,0.048855]
[1737464443624,0.153851,104600.0,104590.0,0.048855]
[1737464443921,0.156851,104600.0,104590.0,0.049855]
[1737464444128,0.63758178,104600.0,104590.0,0.002]
[1737464444825,0.517651,104600.0,104590.0,0.002]
[1737464445016,0.517651,104600.0,104580.0,0.00014338]
[1737464445017,0.047855,104590.0,104580.0,0.00014338]
[1737464445222,0.52858578,104590.0,104580.0,0.00014338]
[1737464445918,0.408655,104590.0,104580.0,0.00014338]
[1737464446423,0.413655,104590.0,104580.0,0.00014338]
[1737464446627,0.422655,104590.0,104580.0,0.00114338]
[1737464447429,0.54258578,104590.0,104580.0,0.00114338]
[1737464448023,0.422655,104590.0,104580.0,0.00114338]
[1737464449034,0.061855,104590.0,104580.0,0.40980338]
[1737464450129,0.014,104590.0,104580.0,0.40980338]
[1737464450632,0.014,104590.0,104580.0,0.04900338]
[1737464450633,0.061855,104590.0,104580.0,0.04900338]
[1737464450817,0.061855,104590.0,104580.0,0.40980338]
[1737464451829,0.061855,104590.0,104580.0,0.04900338]
[1737464452730,0.061855,104590.0,104580.0,0.40980338]
[1737464457035,0.014,104590.0,104580.0,0.40980338]
[1737464457234,0.014,104590.0,104580.0,0.52973416]
[1737464457435,0.014,104590.0,104580.0,0.40980338]
[1737464458628,0.014,104590.0,104580.0,0.00114338]
[1737464458629,0.54258578,104590.0,104580.0,0.00114338]
[1737464458824,2.04258578,104590.0,104560.0,0.408668]
[1737464459020,0.047864,104570.0,104560.0,0.408668]
[1737464460339,0.048864,104570.0,104560.0,0.417668]
[1737464460725,0.048864,104570.0,104560.0,0.009]
[1737464460926,0.52959478,104570.0,104560.0,0.009]
[1737464461123,0.051569,104560.0,104550.0,0.00014338]
[1737464461331,0.53229978,104560.0,104550.0,0.00014338]
[1737464461524,0.58379978,104560.0,104550.0,0.00014338]
[1737464461928,0.047873,104550.0,104530.0,0.04795006]
[1737464462122,0.16780878,104540.0,104530.0,7.006e-05]
[1737464462324,0.52860878,104540.0,104530.0,7.006e-05]
[1737464462936,0.52860878,104540.0,104510.0,0.3608]
[1737464463235,0.408683,104530.0,104520.0,0.00014338]
[1737464463437,0.52861378,104530.0,104520.0,0.00014338]
[1737464463737,0.52861378,104530.0,104520.0,0.27981485]
[1737464463934,2.02861378,104530.0,104520.0,0.27981485]
[1737464464142,0.408683,104530.0,104520.0,0.27981485]
[1737464464325,0.52861378,104530.0,104520.0,0.27981485]
[1737464464832,0.52961378,104530.0,104520.0,0.28781485]
[1737464465838,0.53061378,104530.0,104520.0,0.29581485]
[1737464467635,0.67343009,104530.0,104520.0,0.01614338]
[1737464468036,0.55349931,104530.0,104520.0,0.01614338]
[1737464468435,0.67343009,104530.0,104520.0,0.01614338]
[1737464470633,0.55349931,104530.0,104520.0,0.01614338]
[1737464471233,0.410683,104530.0,104520.0,0.01614338]
[1737464471630,0.410683,104530.0,104520.0,0.06403038]
[1737464471830,0.049883,104530.0,104520.0,0.06403038]
[1737464472744,0.16065378,104530.0,104520.0,0.01614338]
[1737464473537,0.52145378,104530.0,104520.0,0.01614338]
[1737464473736,0.16065378,104530.0,104520.0,0.01614338]
[1737464474541,0.040723,104530.0,104520.0,0.01614338]
[1737464475434,0.401523,104530.0,104520.0,0.01614338]
[1737464476531,0.401523,104530.0,104520.0,0.06403038]
[1737464478343,0.040723,104530.0,104520.0,0.06403038]
[1737464479041,0.040723,104530.0,104520.0,0.48033038]
[1737464479432,0.040723,104530.0,104520.0,0.11953038]
[1737464479635,0.040723,104530.0,104520.0,0.48033038]
[1737464480330,0.040723,104530.0,104520.0,0.11953038]
[1737464480535,0.040723,104530.0,104520.0,0.48033038]
[1737464481040,0.040723,104530.0,104520.0,0.11953038]